bitfinex/quotes_SOLUSD_20250701
["timestamp","ask_amount","ask_price","bid_price","bid_amount"]
[1751333736499,0.1,155.32,155.31,11.23229412]
[1751333740200,0.1,155.32,155.31,11.51661726]
[1751333740900,0.1,155.32,155.31,11.23229412]
[1751333742605,0.1,155.32,155.29,16.09891171]
[1751333742606,0.1,155.32,155.28,4.79355869]
[1751333742778,4.79355869,155.31,155.27,6.44039415]
[1751333742979,4.79355869,155.29,155.24,6.44163875]
[1751333743187,1.6282,155.3,155.25,4.79355869]
[1751333743393,4.79355869,155.29,155.25,4.79355869]
[1751333743996,4.79355869,155.29,155.26,6.44080896]
[1751333744381,6.42175869,155.3,155.26,11.23436765]
[1751333744687,6.42175869,155.3,155.26,6.44080896]
[1751333745703,4.79355869,155.29,155.26,6.44080896]
[1751333747482,4.79355869,155.29,155.23,16.10434148]
[1751333747694,1.6282,155.3,155.24,4.79355869]
[1751333747895,4.79355869,155.29,155.24,4.79355869]
[1751333748096,4.79355869,155.28,155.24,4.79355869]
[1751333748300,26.0,155.27,155.23,20.89790017]
[1751333748720,26.0,155.27,155.22,4.79355869]
[1751333748721,26.0,155.26,155.22,4.79355869]
[1751333748906,30.79355869,155.26,155.21,6.44288383]
[1751333749225,30.79355869,155.26,155.21,11.23644252]
[1751333749712,26.0,155.26,155.23,4.79355869]
[1751333749882,26.0,155.26,155.24,4.79355869]
[1751333750502,26.0,155.28,155.24,4.79355869]
[1751333751505,30.79355869,155.28,155.23,4.79355869]
[1751333751916,26.0,155.28,155.24,6.44163875]
[1751333752088,30.79355869,155.28,155.24,6.44163875]
[1751333753109,26.0,155.28,155.25,4.79355869]
[1751333754795,26.0,155.27,155.26,6.44080896]
[1751333757018,26.0,155.27,155.25,6.44106375]
[1751333757900,30.79355869,155.26,155.17,32.36312705]
[1751333758109,4.79355869,155.25,155.2,4.79355869]
[1751333758415,4.79355869,155.24,155.2,4.79355869]
[1751333758592,1.5302,155.25,155.18,11.23768808]
[1751333758928,30.79355869,155.22,155.18,11.23768808]
[1751333759297,26.0,155.22,155.19,4.79355869]
[1751333760193,26.0,155.22,155.2,6.44329896]
[1751333761021,26.0,155.22,155.2,11.23685765]
[1751333761196,26.0,155.22,155.2,6.44329896]
[1751333762315,30.79355869,155.22,155.19,6.44371415]
[1751333762625,26.0,155.22,155.19,6.44371415]
[1751333767024,26.0,155.23,155.19,11.23727284]
[1751333767434,4.79355869,155.21,155.16,11.23851873]
[1751333768508,30.79355869,155.21,155.16,11.23851873]
[1751333768714,30.79355869,155.21,155.16,6.44496004]
[1751333768921,4.79355869,155.2,155.16,6.44496004]
[1751333769729,26.0,155.21,155.18,4.79355869]
[1751333770624,26.0,155.21,155.19,6.44371415]
[1751333772014,30.79355869,155.23,155.19,6.44371415]
[1751333772421,26.0,155.23,155.19,11.23727284]
[1751333772626,6.74,155.24,155.21,6.44288383]
[1751333779838,11.53355869,155.24,155.19,4.79355869]
[1751333781242,4.79355869,155.23,155.19,4.79355869]
[1751333782039,4.79355869,155.23,155.18,4.79355869]
[1751333782415,4.79355869,155.23,155.19,6.44371415]
[1751333784141,4.79355869,155.2,155.15,4.79355869]
[1751333784323,4.79355869,155.18,155.14,6.44579089]
[1751333784516,4.79355869,155.17,155.14,6.44579089]
[1751333784837,4.79355869,155.16,155.12,6.44653016]
[1751333785534,30.79355869,155.16,155.12,6.44653016]
[1751333785741,4.79355869,155.15,155.12,6.44653016]
[1751333785918,4.79355869,155.15,155.11,6.44703758]
[1751333786539,4.79355869,155.13,155.09,6.44786897]
[1751333786737,26.0,155.14,155.09,6.44786897]
[1751333786738,26.0,155.14,155.1,4.79355869]
[1751333787820,26.0,155.14,155.12,6.44662197]
[1751333788837,11.53355869,155.17,155.12,11.24018066]
[1751333789038,37.53355869,155.17,155.12,11.24018066]
[1751333789239,32.74,155.17,155.12,22.56317689]
[1751333789423,37.53355869,155.17,155.12,27.35673558]
[1751333789941,37.53355869,155.17,155.09,22.56754141]
[1751333790123,37.53355869,155.17,155.12,4.79355869]
[1751333790644,32.74,155.17,155.09,22.56754141]
[1751333790955,4.79355869,155.19,155.14,4.79355869]
[1751333791330,4.79355869,155.18,155.14,4.79355869]
[1751333791739,4.79355869,155.18,155.13,4.79355869]
[1751333792041,30.79355869,155.18,155.14,6.44579089]
[1751333792440,4.79355869,155.17,155.14,6.44579089]
[1751333793548,4.79355869,155.17,155.12,22.56316313]
[1751333793746,4.79355869,155.17,155.13,4.79355869]
[1751333794633,0.14216157,155.18,155.13,4.79355869]
[1751333794834,4.79355869,155.17,155.13,4.79355869]
[1751333796750,4.79355869,155.17,155.14,6.44579089]
[1751333798044,4.79355869,155.17,155.13,6.44606809]
[1751333798252,4.79355869,155.16,155.13,6.44606809]
[1751333798626,26.0,155.15,155.12,6.44646158]
[1751333798934,30.79355869,155.15,155.11,6.44703758]
[1751333799547,4.79355869,155.14,155.11,6.44703758]
[1751333800432,30.79355869,155.15,155.1,11.24101194]
[1751333800634,30.79355869,155.15,155.1,27.35964507]
[1751333801150,30.79355869,155.15,155.1,22.56608638]
[1751333801355,30.79355869,155.15,155.1,27.35964507]
[1751333802648,26.0,155.15,155.1,27.35964507]
[1751333802843,30.79355869,155.15,155.1,27.35964507]
[1751333804353,26.0,155.15,155.1,22.56608638]
[1751333804654,26.0,155.15,155.11,4.79355869]
[1751333806966,26.0,155.15,155.08,22.56899664]
[1751333807137,26.0,155.15,155.11,4.79355869]
[1751333808251,26.0,155.15,155.12,6.44662197]
[1751333809657,26.0,155.14,155.12,6.44662197]
[1751333810264,26.0,155.14,155.08,22.56899664]
[1751333810565,26.0,155.14,155.11,4.79355869]
[1751333811660,4.79355869,155.16,155.12,6.44662197]
[1751333811876,6.76,155.17,155.14,4.79355869]
[1751333812362,6.76,155.17,155.15,4.79355869]
[1751333812767,6.76,155.17,155.14,4.79355869]
[1751333813473,6.76,155.17,155.13,4.79355869]
[1751333813677,6.76,155.17,155.14,6.44579089]
[1751333816270,6.76,155.17,155.1,54.80187092]
[1751333816471,6.76,155.17,155.13,4.79355869]
[1751333816657,6.76,155.17,155.14,4.79355869]
[1751333816846,26.0,155.18,155.14,4.79355869]
[1751333817047,26.0,155.19,155.16,4.79355869]
[1751333817257,150.99355869,155.22,155.17,4.79355869]
[1751333817647,172.2,155.22,155.17,4.79355869]
[1751333817871,4.79355869,155.21,155.16,4.79355869]
[1751333818380,4.79355869,155.21,155.17,6.44454469]
[1751333818947,176.99355869,155.22,155.17,11.23810338]
[1751333820372,172.2,155.22,155.18,4.79355869]
[1751333820575,176.99355869,155.22,155.17,27.34946511]
[1751333820778,4.79355869,155.2,155.17,6.44454469]
[1751333820953,4.79355869,155.18,155.17,6.44454469]
[1751333821475,26.0,155.19,155.17,6.44454469]
[1751333821677,26.0,155.19,155.16,6.44496004]
[1751333824978,30.79355869,155.19,155.16,6.44496004]
[1751333825667,26.0,155.19,155.16,6.44496004]
[1751333825865,30.79355869,155.19,155.16,6.44496004]
[1751333826580,4.79355869,155.18,155.14,6.44579089]
[1751333826782,4.79355869,155.18,155.14,11.23934958]
[1751333827161,30.79355869,155.19,155.14,11.23934958]
[1751333827483,26.0,155.19,155.15,4.79355869]
[1751333828583,4.79355869,155.18,155.12,17.66111348]
[1751333828781,26.0,155.18,155.14,4.79355869]
[1751333828959,26.0,155.19,155.15,4.79355869]
[1751333829163,26.0,155.19,155.16,4.79355869]
[1751333830283,26.0,155.19,155.13,22.56172241]
[1751333830584,26.0,155.19,155.17,6.44454469]
[1751333837883,26.0,155.19,155.16,11.23851873]
[1751333838891,26.0,155.19,155.16,6.44496004]
[1751333840493,26.0,155.19,155.13,22.56172241]
[1751333840674,26.0,155.19,155.15,4.79355869]
[1751333841594,30.79355869,155.19,155.14,4.79355869]
[1751333843193,30.79355869,155.19,155.15,6.44537544]
[1751333844501,30.79355869,155.19,155.13,16.11551601]
[1751333844673,30.79355869,155.19,155.14,4.79355869]
[1751333845577,30.79355869,155.19,155.15,6.44537544]
[1751333845792,26.0,155.19,155.15,6.44537544]
[1751333846088,30.79355869,155.19,155.15,6.44537544]
[1751333847399,26.0,155.19,155.15,4.79355869]
[1751333848175,26.0,155.19,155.16,4.79355869]
[1751333849080,26.0,155.19,155.15,4.79355869]
[1751333850378,26.0,155.19,155.16,6.44496004]
[1751333860422,1.6422,155.21,155.16,25.62167193]
[1751333860620,172.2,155.22,155.18,3.06431179]
[1751333861494,26.0,155.22,155.18,3.06431179]
[1751333861695,26.0,155.22,155.16,22.55736014]
[1751333861696,6.74,155.23,155.2,3.06431179]
[1751333861911,6.74,155.23,155.19,3.06431179]
[1751333862416,6.74,155.23,155.2,6.44329896]
[1751333862616,6.74,155.23,155.2,9.50761075]
[1751333863120,6.74,155.23,155.2,6.44329896]
[1751333863494,9.80431179,155.23,155.2,6.44329896]
[1751333863895,11.5260934,155.23,155.2,6.44329896]
[1751333864823,11.5260934,155.23,155.19,22.55280649]
[1751333865037,11.5260934,155.23,155.19,6.44371415]
[1751333866607,30.7860934,155.2,155.17,6.44454469]
[1751333866814,4.7860934,155.19,155.15,6.44537544]
[1751333868410,32.3309934,155.2,155.15,11.23146884]
[1751333871532,4.7860934,155.19,155.15,6.44537544]
[1751333871918,32.3309934,155.2,155.15,11.23146884]
[1751333872729,27.5449,155.2,155.15,11.23146884]
[1751333872928,32.3309934,155.2,155.15,11.23146884]
[1751333874632,4.7860934,155.18,155.15,6.44537544]
[1751333874937,7.14546802,155.18,155.15,6.44537544]
[1751333875236,7.14546802,155.18,155.15,11.23146884]
[1751333876340,7.14546802,155.18,155.15,6.44537544]
[1751333878640,11.93156142,155.18,155.15,6.44537544]
[1751333880418,11.93156142,155.18,155.12,6.44662197]
[1751333880617,4.7860934,155.17,155.12,6.44662197]
[1751333880827,4.7860934,155.16,155.12,6.44662197]
[1751333881275,30.7860934,155.15,155.12,6.44662197]
[1751333882846,30.7860934,155.15,155.11,22.5645992]
[1751333883053,4.7860934,155.15,155.11,22.5645992]
[1751333884111,4.7860934,155.16,155.12,4.7860934]
[1751333884316,30.92825497,155.17,155.11,22.5645992]
[1751333884539,30.92825497,155.17,155.12,4.7860934]
[1751333885146,30.92825497,155.17,155.13,6.4462064]
[1751333885346,7.14546802,155.18,155.14,4.7860934]
[1751333885524,7.14546802,155.18,155.15,4.7860934]
[1751333885717,7.14546802,155.18,155.15,3.06443588]
[1751333885926,7.14546802,155.18,155.14,3.06443588]
[1751333886943,3.06443588,155.15,155.13,6.4462064]
[1751333887355,3.06443588,155.15,155.11,6.44703758]
[1751333887733,6.58673761,155.17,155.11,6.44703758]
[1751333888048,4.79085889,155.15,155.11,11.23789647]
[1751333891751,4.79085889,155.15,155.11,6.44703758]
[1751333892834,4.79085889,155.14,155.11,6.44703758]
[1751333896664,4.79085889,155.14,155.1,6.44745325]
[1751333899254,26.0,155.12,155.05,0.1]
[1751333899438,1.6177,155.15,155.08,4.79085889]
[1751333899641,1.6177,155.15,155.11,4.79085889]
[1751333900444,6.40855889,155.15,155.1,4.79085889]
[1751333901056,6.40855889,155.15,155.11,6.44703758]
[1751333901355,6.40855889,155.15,155.11,11.23789647]
[1751333902550,1.6177,155.15,155.11,11.23789647]
[1751333905357,6.40855889,155.15,155.07,22.85477518]
[1751333905542,4.79085889,155.14,155.09,4.79085889]
[1751333905744,6.40855889,155.15,155.1,4.79085889]
[1751333906561,1.6177,155.15,155.11,6.44703758]
[1751333906863,6.40855889,155.15,155.11,6.44703758]
[1751333907165,4.79085889,155.14,155.11,6.44703758]
[1751333907749,4.79085889,155.14,155.1,6.4473838]
[1751333907958,4.79085889,155.13,155.1,6.4473838]
[1751333908555,4.79085889,155.13,155.09,6.44786897]
[1751333911763,3.0669259,155.13,155.08,3.0669259]
[1751333912858,3.0669259,155.13,155.09,3.0669259]
[1751333913865,4.6846259,155.15,155.1,3.0669259]
[1751333914067,3.0669259,155.13,155.07,22.57045204]
[1751333914245,3.0669259,155.12,155.08,3.0669259]
[1751333914452,26.71275877,155.15,155.07,25.63737794]
[1751333914453,3.0669259,155.11,155.07,25.63737794]
[1751333914659,0.14216157,155.13,155.06,6.44897598]
[1751333914970,3.0669259,155.09,155.06,6.44897598]
[1751333917750,4.7944715,155.09,155.06,6.44897598]
[1751333920883,172.2,155.13,155.08,4.7944715]
[1751333921064,150.9944715,155.13,155.09,4.7944715]
[1751333921370,146.2,155.13,155.09,4.7944715]
[1751333921574,146.2,155.13,155.1,4.7944715]
[1751333921760,146.2,155.13,155.11,11.24150908]
[1751333922660,146.2,155.13,155.11,6.44703758]
[1751333924075,146.2,155.13,155.07,22.85477518]
[1751333924372,146.2,155.13,155.1,4.7944715]
[1751333925583,6.3438715,155.14,155.09,4.7944715]
[1751333926667,1.5494,155.14,155.1,11.24192475]
[1751333926983,6.3438715,155.14,155.1,6.44745325]
[1751333928762,4.7944715,155.13,155.1,6.44745325]
[1751333931687,6.3438715,155.14,155.1,6.44745325]
[1751333933805,6.3438715,155.14,155.07,22.57045204]
[1751333933806,4.7944715,155.13,155.07,22.57045204]
[1751333934082,4.7944715,155.13,155.08,4.7944715]
[1751333936788,4.7944715,155.13,155.09,6.44786897]
[1751333938092,4.7944715,155.13,155.09,11.24234047]
[1751333939793,3.06684422,155.13,155.09,3.06684422]
[1751333940568,3.06684422,155.13,155.08,3.06684422]
[1751333942290,3.06684422,155.11,155.06,26.0]
[1751333942481,3.06684422,155.11,155.06,3.06684422]
[1751333943297,1.69156157,155.14,155.09,3.06684422]
[1751333943591,4.61624422,155.14,155.09,3.06684422]
[1751333943791,4.79187474,155.13,155.09,4.79187474]
[1751333945395,4.79187474,155.13,155.1,6.44745325]
[1751333953106,1.5494,155.14,155.1,6.44745325]
[1751333953306,4.79187474,155.13,155.1,6.44745325]
[1751333955285,4.79187474,155.12,155.09,6.44774849]
[1751333955801,4.79187474,155.11,155.07,6.44870058]
[1751333955999,4.79187474,155.1,155.07,6.44870058]
[1751333956218,4.79187474,155.09,155.07,6.44870058]
[1751333956608,4.79187474,155.08,155.05,6.54912023]
[1751333956786,4.79187474,155.07,155.05,6.54912023]
[1751333959207,0.14216157,155.09,155.05,6.54912023]
[1751333959400,4.79187474,155.07,155.05,6.54912023]
[1751333960126,0.14216157,155.09,155.05,6.54912023]
[1751333960328,4.79187474,155.07,155.05,6.54912023]
[1751333964731,18.64964886,155.13,155.06,4.79187474]
[1751333965030,4.79187474,155.12,155.07,4.79187474]
[1751333966240,4.79187474,155.12,155.08,6.44828475]
[1751333968242,4.79187474,155.12,155.07,4.79187474]
[1751333968243,4.79187474,155.12,155.06,11.24099121]
[1751333968415,4.79187474,155.11,155.06,11.24099121]
[1751333970640,0.14216157,155.12,155.06,11.24099121]
[1751333971138,1.5494,155.14,155.09,4.79187474]
[1751333971377,4.93403631,155.14,155.09,4.79187474]
[1751333972947,4.93403631,155.14,155.11,6.44703758]
[1751333976716,4.79187474,155.14,155.11,6.44703758]
[1751333978722,4.79187474,155.14,155.09,4.79187474]
[1751333980348,4.79187474,155.14,155.06,22.57190764]
[1751333980645,4.79187474,155.14,155.09,4.79187474]
[1751333981242,4.79187474,155.14,155.1,6.44745325]
[1751333982222,4.79187474,155.14,155.1,11.23932799]
[1751333983338,4.79187474,155.13,155.1,6.44745325]
[1751333983857,3.06689449,155.13,155.1,6.44745325]
[1751333987360,3.06689449,155.13,155.08,3.06689449]
[1751333987541,3.06689449,155.12,155.08,3.06689449]
[1751333988055,3.06689449,155.13,155.09,6.44786897]
[1751333989256,3.06689449,155.13,155.09,3.06689449]
[1751333990251,3.20905606,155.14,155.09,3.06689449]
[1751333990448,3.06689449,155.15,155.1,3.06689449]
[1751333990622,0.14216157,155.15,155.07,26.0]
[1751333990828,0.14216157,155.15,155.1,3.06689449]
[1751333991043,3.20905606,155.15,155.1,3.06689449]
[1751333991350,6.74,155.16,155.14,6.44579089]
[1751333991750,6.74,155.16,155.14,11.23468093]
[1751333991940,6.74,155.16,155.15,4.78889004]
[1751333992249,7.14546802,155.18,155.14,11.23468093]
[1751333993629,11.93435806,155.18,155.14,11.23468093]
[1751333994349,11.93435806,155.18,155.14,6.44579089]
[1751333995055,4.78889004,155.18,155.14,6.44579089]
[1751333996545,6.44387206,155.19,155.14,6.44579089]
[1751333996744,4.78889004,155.18,155.14,6.44579089]
[1751333997760,4.78889004,155.18,155.1,6.44745325]
[1751333997761,4.78889004,155.15,155.1,6.44745325]
[1751333997947,4.78889004,155.14,155.1,6.44745325]
[1751333998146,0.14216157,155.15,155.1,6.44745325]
[1751333998447,4.78889004,155.14,155.1,6.44745325]
[1751334002657,4.78889004,155.14,155.1,11.23634329]
[1751334003653,4.78889004,155.13,155.1,6.44745325]
[1751334004746,4.78889004,155.13,155.09,6.44786897]
[1751334005244,4.78889004,155.13,155.1,0.1]
[1751334005759,4.78889004,155.15,155.1,4.88889004]
[1751334008366,4.78889004,155.15,155.11,6.44703758]
[1751334008668,4.78889004,155.14,155.11,6.44703758]
[1751334009047,4.78889004,155.13,155.1,6.54728512]
[1751334009657,4.78889004,155.11,155.1,0.1]
[1751334011045,4.78889004,155.12,155.1,0.1]
[1751334012967,4.93105161,155.13,155.1,6.54741585]
[1751334013269,0.14216157,155.12,155.1,6.54741585]
[1751334013965,0.14216157,155.13,155.1,6.54741585]
[1751334014164,4.78889004,155.14,155.1,6.54741585]
[1751334016958,0.14216157,155.14,155.1,11.33630589]
[1751334018173,0.14216157,155.14,155.12,6.44662197]
[1751334019276,0.14216157,155.14,155.11,6.44703758]
[1751334020172,0.14216157,155.15,155.11,11.23592762]
[1751334022573,7.28256839,155.16,155.11,27.35352158]
[1751334022759,12.07145843,155.16,155.11,27.35352158]
[1751334025082,4.78889004,155.14,155.11,6.44703758]
[1751334026985,0.14216157,155.13,155.11,6.44703758]
[1751334027177,0.14216157,155.13,155.1,6.54727002]
[1751334027485,4.93105161,155.13,155.1,0.1]
[1751334028085,4.93105161,155.13,155.1,6.54738963]
[1751334030574,0.14216157,155.13,155.1,6.54738963]
[1751334032985,4.93105161,155.13,155.1,6.54738963]
[1751334034169,0.14216157,155.13,155.1,6.54738963]
[1751334034487,4.93105161,155.13,155.1,6.54738963]
[1751334038788,0.14216157,155.13,155.1,6.54738963]
[1751334047602,3.20914352,155.13,155.1,6.54738963]
[1751334047896,3.20914352,155.11,155.1,0.1]
[1751334048390,21.85879238,155.11,155.1,0.1]
[1751334051899,18.79181043,155.11,155.1,0.1]
[1751334055810,0.14216157,155.11,155.1,0.1]
[1751334056903,21.85879238,155.11,155.1,0.1]
[1751334058495,18.79181043,155.11,155.1,0.1]
[1751334060309,1.5995,155.12,155.1,0.1]
[1751334060499,3.20914352,155.13,155.1,0.1]
[1751334060696,21.85879238,155.13,155.1,0.1]
[1751334061205,21.85879238,155.13,155.1,6.54740144]
[1751334061590,21.85879238,155.13,155.1,0.1]
[1751334061998,3.06698195,155.12,155.1,0.1]
[1751334063387,21.85879238,155.13,155.1,0.1]
[1751334064313,18.64964886,155.12,155.1,0.1]
[1751334064503,28.30582996,155.11,155.1,0.1]
[1751334073919,21.85879238,155.11,155.1,0.1]
[1751334074514,28.30582996,155.11,155.1,0.1]
[1751334078130,54.7301531,155.11,155.1,0.1]
[1751334079118,223.86317115,155.11,155.1,0.1]
[1751334079324,226.9301531,155.11,155.1,0.1]
[1751334080208,80.7301531,155.11,155.1,0.1]
[1751334080816,0.14216157,155.09,155.05,0.1]
[1751334080998,22.14311552,155.06,155.05,0.1]
[1751334081203,48.28311552,155.06,155.05,0.1]
[1751334082099,54.73223199,155.06,155.05,0.1]
[1751334082295,0.42648471,155.04,155.03,0.1]
[1751334082507,60.55104332,155.04,155.03,0.1]
[1751334083206,68.63434332,155.04,155.03,0.1]
[1751334083407,49.86391552,155.04,155.03,0.1]
[1751334083729,19.07613357,155.03,155.02,0.1]
[1751334083938,23.87795094,155.03,155.02,0.1]
[1751334084118,44.64964886,155.01,155.0,0.1]
[1751334084314,90.07548582,155.01,155.0,0.1]
[1751334085199,19.07613357,155.0,154.98,0.1]
[1751334085405,77.66775094,154.99,154.98,0.1]
[1751334086118,84.1197801,154.99,154.98,0.1]
[1751334086706,53.17796273,154.99,154.98,0.1]
[1751334086906,84.1197801,154.99,154.98,0.1]
[1751334089430,82.4699801,154.99,154.98,0.1]
[1751334091126,202.5299801,154.99,154.98,0.1]
[1751334091307,228.6899801,154.99,154.98,0.1]
[1751334092626,202.6899801,154.99,154.98,0.1]
[1751334093127,23.45146623,154.99,154.98,0.1]
[1751334093440,18.79181043,154.99,154.98,0.1]
[1751334093729,18.64964886,154.99,154.98,0.1]
[1751334094432,18.79181043,154.99,154.98,0.1]
[1751334097021,18.79181043,155.0,154.98,11.35410839]
[1751334097734,14.05753488,155.01,154.99,4.80181737]
[1751334097735,7.33753488,155.01,154.99,4.80181737]
[1751334098033,7.33753488,155.01,154.98,6.55229102]
[1751334098234,7.33753488,155.01,154.98,11.35410839]
[1751334101645,7.33753488,155.01,154.98,6.55229102]
[1751334102031,7.33753488,155.01,154.98,11.35410839]
[1751334102443,7.33753488,155.01,154.98,6.55229102]
[1751334102655,7.33753488,155.01,154.98,11.35410839]
[1751334103225,18.79181043,155.0,154.98,0.1]
[1751334104444,18.79181043,155.0,154.98,4.90181737]
[1751334104830,7.33753488,155.01,154.98,4.90181737]
[1751334107524,18.79181043,155.0,154.98,0.1]
[1751334110426,7.33753488,155.01,154.98,4.90181737]
[1751334114747,7.33753488,155.01,154.98,11.35415922]
[1751334116442,7.33753488,155.01,155.0,4.80181737]
[1751334116952,7.33753488,155.01,154.99,4.80181737]
[1751334117954,7.33753488,155.01,155.0,4.80181737]
[1751334120053,7.33753488,155.01,155.0,11.25343027]
[1751334137773,0.2,155.08,155.03,26.0]
[1751334137960,0.2,155.08,155.07,4.80181737]
[1751334138675,0.2,155.08,155.07,8.00706613]
[1751334139779,0.2,155.08,155.07,19.70995074]
[1751334141372,0.2,155.08,155.07,14.45576671]
[1751334142485,0.2,155.08,155.07,8.00706613]
[1751334142686,0.2,155.08,155.07,14.45576671]
[1751334144092,0.2,155.08,155.07,8.00706613]
[1751334146992,0.2,155.08,155.07,3.20524876]
[1751334147189,0.2,155.08,155.07,4.80181737]
[1751334148397,0.2,155.08,155.07,7.95463061]
[1751334151697,0.2,155.08,155.06,4.80181737]
[1751334152191,0.2,155.08,155.07,4.80181737]
[1751334153792,0.2,155.08,155.05,6.44940377]
[1751334153990,0.2,155.08,155.07,4.80181737]
[1751334154295,0.2,155.08,155.05,6.44940377]
[1751334154502,0.2,155.08,155.07,4.80181737]
[1751334158604,0.2,155.08,155.05,9.74107527]
[1751334158783,6.64840209,155.08,155.04,4.80181737]
[1751334160301,25.24057863,155.07,155.03,4.80181737]
[1751334161307,25.24057863,155.07,155.03,7.98449574]
[1751334161602,25.24057863,155.07,155.03,3.18267837]
[1751334161787,18.79181043,155.07,155.04,4.80181737]
[1751334162409,18.79181043,155.07,155.05,4.80181737]
[1751334166701,0.2,155.08,155.05,4.80181737]
[1751334166912,0.2,155.08,155.06,4.80181737]
[1751334167909,0.2,155.08,155.05,4.80181737]
[1751334173396,6.64836097,155.08,155.05,4.80181737]
[1751334173720,19.07613357,155.05,155.0,4.80181737]
[1751334173901,32.10075094,155.05,155.0,4.80181737]
[1751334174093,27.01461043,155.05,155.02,4.80181737]
[1751334175317,27.01461043,155.05,155.02,11.25257028]
[1751334175522,8.2228,155.05,155.03,4.80181737]
[1751334175708,6.7,155.05,155.04,4.80181737]
[1751334176420,6.7,155.05,155.03,4.80181737]
[1751334176916,6.7,155.05,155.03,11.25184567]
[1751334179623,18.64964886,155.03,154.98,0.1]
[1751334179803,18.64964886,155.03,154.98,26.1]
[1751334180008,18.64964886,155.03,154.99,4.80181737]
[1751334180717,18.64964886,155.03,154.99,11.25350892]
[1751334182304,18.64964886,155.03,154.99,14.438301]
[1751334183423,18.64964886,155.03,154.99,9.63648363]
[1751334184605,23.45146623,155.03,154.99,9.63648363]
[1751334184904,18.64964886,155.03,154.99,30.5683739]
[1751334185222,18.79181043,155.04,155.02,6.45078054]
[1751334185425,6.7,155.05,155.02,11.25259791]
[1751334186827,6.7,155.05,155.02,27.37954927]
[1751334187625,6.7,155.05,155.02,22.5777319]
[1751334187828,6.7,155.05,155.04,30.80181737]
[1751334188826,6.7,155.05,155.04,37.25176577]
[1751334190123,6.7,155.05,155.04,32.4499484]
[1751334190424,6.7,155.05,155.04,37.25176577]
[1751334195126,0.2,155.08,155.04,37.25176577]
[1751334195516,0.2,155.08,155.06,4.80181737]
[1751334196236,0.2,155.08,155.07,6.44870058]
[1751334198133,0.2,155.08,155.05,6.4495324]
[1751334198316,0.2,155.08,155.06,4.80181737]
[1751334200339,18.99181043,155.08,155.06,11.25070061]
[1751334201041,0.2,155.08,155.07,4.80181737]
[1751334201938,0.2,155.08,155.07,11.25051795]
[1751334204832,0.2,155.08,155.05,6.4495324]
[1751334205145,0.2,155.08,155.07,4.80181737]
[1751334205817,0.2,155.08,155.07,3.06820346]
[1751334207044,0.2,155.08,155.07,9.51690404]
[1751334209441,0.2,155.08,155.07,6.44870058]
[1751334209748,0.2,155.08,155.07,9.51690404]
[1751334213250,0.2,155.08,155.07,3.06820346]
[1751334214847,18.99181043,155.08,155.06,3.06820346]
[1751334215059,18.99181043,155.08,155.04,3.06820346]
[1751334215060,23.62181389,155.08,155.04,3.06820346]
[1751334215228,0.14216157,155.06,155.04,3.06820346]
[1751334216266,0.14216157,155.06,155.01,32.45109122]
[1751334216435,0.14216157,155.06,155.02,3.06820346]
[1751334216629,0.14216157,155.06,155.03,3.06820346]
[1751334217334,0.14216157,155.06,155.0,6.4516129]
[1751334217537,0.14216157,155.06,155.03,3.06820346]
[1751334218455,6.59131256,155.06,155.03,3.06820346]
[1751334218659,0.14216157,155.04,155.03,3.06820346]
[1751334221259,18.64964886,155.05,155.01,6.45084096]
[1751334221431,18.64964886,155.05,155.03,3.06820346]
[1751334223656,18.64964886,155.05,155.0,6.4516129]
[1751334223840,18.64964886,155.05,155.03,3.06820346]
[1751334228263,18.64964886,155.05,155.01,6.4509878]
[1751334228451,18.64964886,155.05,155.03,3.06820346]
[1751334228764,18.64964886,155.05,155.01,6.4509878]
[1751334228963,18.64964886,155.05,155.02,3.06820346]
[1751334229161,18.79181043,155.05,155.04,3.06820346]
[1751334229375,0.14216157,155.06,155.04,3.06820346]
[1751334229542,18.933972,155.07,155.05,3.06820346]
[1751334229543,18.64964886,155.07,155.05,3.06820346]
[1751334229741,0.2,155.08,155.06,3.06820346]
[1751334230088,0.2,155.08,155.07,3.06820346]
[1751334230089,18.84964886,155.08,155.07,3.06820346]
[1751334230864,0.14216157,155.07,155.05,3.06820346]
[1751334233872,0.14216157,155.07,155.05,4.79550135]
[1751334235268,0.14216157,155.07,155.03,6.4500439]
[1751334235464,11.38638763,155.07,155.03,4.79550135]
[1751334235668,0.28432314,155.06,155.02,4.79550135]
[1751334235862,0.28432314,155.06,155.03,4.79550135]
[1751334236063,0.28432314,155.06,155.01,6.45119669]